fUST/lending_fUST_20260212
["ID","MTS","AMOUNT","RATE_DAILY","PERIOD"]
[405113484,1770847845872,-500.0,0.00036602,15]
[405113485,1770847845883,-500.0,0.00036602,7]
[405113486,1770847845893,-500.0,0.00036602,15]
[405113487,1770847845904,-500.0,0.00036602,7]
[405113488,1770847845914,-500.0,0.00036602,7]
[405113489,1770847845925,-378.18632138,0.00036602,7]
[405113490,1770847845934,-2000.0,0.00036603,2]
[405113491,1770847845944,-161.86724714,0.00037097,2]
[405113492,1770847845954,-401.0,0.00037661,11]
[405113493,1770847845964,-11365.26832088,0.0003799,2]
[405113494,1770847845974,-35635.47557437,0.0003799,2]
[405113495,1770847845986,-5712.1911495,0.00038034,2]
[405113496,1770847845996,-4267.53,0.00038223,10]
[405113497,1770847846006,-3556.27,0.00038223,10]
[405113498,1770847846016,-53045.788401,0.00038233,3]
[405113499,1770847846026,-83659.95974963,0.00038244,2]
[405113500,1770847846075,-2546.230728,0.00038244,2]
[405113501,1770847846167,-6886.77089005,0.00038244,2]
[405113510,1770848115541,500.0,0.00013699,2]
[405113511,1770848115585,1000.0,0.00014247,2]
[405113512,1770848115659,1500.0,0.00014795,2]
[405113539,1770848188153,500.0,0.00013699,2]
[405113540,1770848250982,-160.00577039,0.00023782,2]
[405113541,1770848254399,-809.62267868,0.00023782,2]
[405113542,1770848261819,969.62844907,0.0002352,2]
[405113544,1770848343237,500.0,0.00013699,2]
[405113545,1770848343362,1000.0,0.00014247,2]
[405113546,1770848343393,202.16105981,0.00014795,2]
[405113549,1770848431297,5000.0,0.0002352,2]
[405113550,1770848447700,5000.0,0.0002352,2]
[405113551,1770848470324,5000.0,0.0002352,2]
[405113552,1770848493132,5000.0,0.0002352,2]
[405113553,1770848494895,210.45223575,0.00013273,2]
[405113554,1770848503179,500.0,0.00013699,2]
[405113555,1770848516035,5000.0,0.0002352,2]
[405113556,1770848538046,1285.47393687,0.0002352,2]
[405113557,1770848549041,243.5381958,0.00023451,2]
[405113558,1770848583519,501.44248155,0.00013699,2]
[405113559,1770848597328,9024.9598888,0.00023216,2]
[405113561,1770848689411,5000.0,0.0002352,2]
[405113562,1770848697189,5000.0,0.0002352,2]
[405113563,1770848705453,5000.0,0.0002352,2]
[405113564,1770848709703,215.67000002,0.00013699,2]
[405113565,1770848710948,304.73831557,0.00013699,2]
[405113566,1770848713230,1123.52525754,0.0002352,2]
[405113567,1770848720980,991.63311137,0.0002352,2]
[405113568,1770848738243,-213.06917534,0.00023782,2]
[405113569,1770848763858,502.10944608,0.00013273,2]
[405113570,1770848781315,500.0,0.00013699,2]
[405113571,1770848788788,500.0,0.00013699,2]
[405113572,1770848846089,-580.93082466,0.00023782,2]
[405113573,1770848846116,-300.0,0.00023834,2]
[405113574,1770848846137,-300.0,0.00023835,2]
[405113575,1770848846160,-300.0,0.00023835,2]
[405113576,1770848846181,-300.0,0.00023835,2]
[405113577,1770848846203,-1200.0,0.00023835,2]
[405113578,1770848846224,-730.47798776,0.00023836,2]
[405113579,1770848848086,-1176.83820278,0.00023836,2]
[405113580,1770848911585,-173.46,0.00023835,2]
[405113581,1770848922679,5000.0,0.0002352,2]
[405113582,1770848923336,-376.05467282,0.00023835,2]
[405113583,1770848930464,5000.0,0.0002352,2]
[405113584,1770848945391,3447.24363285,0.0002352,2]
[405113585,1770848950107,-300.0,0.00023834,2]
[405113586,1770848950130,-123.94532718,0.00023835,2]
[405113587,1770848950154,-72.07328499,0.00023835,2]
[405113588,1770848953261,5000.0,0.0002352,2]
[405113589,1770848955137,-427.92671501,0.00023835,2]
[405113590,1770848955164,-500.0,0.00023835,2]
[405113591,1770848955183,-500.0,0.00023835,2]
[405113592,1770848955203,-500.0,0.00023835,2]
[405113593,1770848955226,-162.03960009,0.00023835,2]
[405113594,1770848955246,-500.0,0.00023835,2]
[405113595,1770848955268,-500.0,0.00023835,2]
[405113596,1770848955289,-500.0,0.00023835,2]
[405113597,1770848955309,-500.0,0.00023835,2]
[405113598,1770848955331,-500.0,0.00023835,2]
[405113599,1770848955350,-183.24628193,0.00023835,2]
[405113600,1770848955371,-500.0,0.00023835,2]
[405113601,1770848955398,-500.0,0.00023835,2]
[405113602,1770848955417,-500.0,0.00023835,2]
[405113603,1770848955438,-500.0,0.00023835,2]
[405113604,1770848955460,-500.0,0.00023835,2]
[405113605,1770848955482,-500.0,0.00023835,2]
[405113606,1770848955504,-184.85162088,0.00023835,2]
[405113607,1770848955526,-500.0,0.00023835,2]
[405113608,1770848955548,-500.0,0.00023835,2]
[405113609,1770848955568,-489.81258555,0.00023835,2]
[405113610,1770848955592,-500.0,0.00023835,2]
[405113611,1770848955612,-500.0,0.00023835,2]
[405113612,1770848955633,-500.0,0.00023835,2]
[405113613,1770848955654,-500.0,0.00023835,2]
[405113614,1770848955676,-500.0,0.00023835,2]
[405113615,1770848955699,-500.0,0.00023835,2]
[405113616,1770848955719,-500.0,0.00023835,2]
[405113617,1770848955740,-500.0,0.00023835,2]
[405113618,1770848955760,-500.0,0.00023835,2]
[405113619,1770848955780,-504.35152439,0.00023835,2]
[405113620,1770848955801,-500.0,0.00023835,2]
[405113621,1770848955823,-500.0,0.00023835,2]
[405113622,1770848955845,-500.0,0.00023835,2]
[405113623,1770848955975,-500.0,0.00023835,2]
[405113624,1770848956003,-500.0,0.00023835,2]
[405113625,1770848956024,-500.0,0.00023835,2]
[405113626,1770848956046,-500.0,0.00023835,2]
[405113627,1770848956066,-500.0,0.00023835,2]
[405113628,1770848956088,-500.0,0.00023835,2]
[405113629,1770848956110,-500.0,0.00023835,2]
[405113630,1770848956132,-500.0,0.00023835,2]
[405113631,1770848956159,-500.0,0.00023835,2]
[405113632,1770848956183,-500.0,0.00023835,2]
[405113633,1770848956208,-500.0,0.00023835,2]
[405113634,1770848956231,-500.0,0.00023835,2]
[405113635,1770848956253,-500.0,0.00023835,2]
[405113636,1770848956275,-500.0,0.00023835,2]
[405113637,1770848956297,-500.0,0.00023835,2]
[405113638,1770848956319,-500.0,0.00023835,2]
[405113639,1770848956342,-500.0,0.00023835,2]
[405113640,1770848956363,-500.0,0.00023835,2]
[405113641,1770848956387,-500.0,0.00023835,2]
[405113642,1770848956409,-292.77724011,0.00023835,2]
[405113643,1770848956432,-500.0,0.00023835,2]
[405113644,1770848956454,-500.0,0.00023835,2]
[405113645,1770848956476,-500.0,0.00023835,2]
[405113646,1770848956498,-500.0,0.00023835,2]
[405113647,1770848956520,-361.28652383,0.00023835,2]
[405113648,1770848956541,-500.0,0.00023835,2]
[405113649,1770848956562,-500.0,0.00023835,2]
[405113650,1770848956585,-500.0,0.00023835,2]
[405113651,1770848956607,-500.0,0.00023835,2]
[405113652,1770848956628,-500.0,0.00023835,2]
[405113653,1770848956653,-500.0,0.00023835,2]
[405113654,1770848956674,-500.0,0.00023835,2]
[405113655,1770848956695,-67.16569505,0.00023835,2]
[405113656,1770848956900,-432.83430495,0.00023835,2]
[405113657,1770848956923,-500.0,0.00023835,2]
[405113658,1770848956944,-499.99999999,0.00023835,2]
[405113659,1770848956967,-499.99999999,0.00023835,2]
[405113660,1770848956987,-11685.80454461,0.00023836,2]
[405113661,1770848962096,-7878.10006579,0.00023836,2]
[405113662,1770848962118,-150.0,0.00023836,2]
[405113663,1770848962140,-3167.88256999,0.00023837,2]
[405113664,1770848962164,-3167.88256999,0.00023837,2]
[405113665,1770848962184,-3167.88256999,0.00023837,2]
[405113666,1770848962205,-3167.88256999,0.00023837,2]
[405113667,1770848962226,-3171.05045256,0.00023837,2]
[405113668,1770848962247,-316.21803813,0.00023837,2]
[405113669,1770848962267,-316.53425617,0.00023837,2]
[405113670,1770848962287,-316.21803813,0.00023837,2]
[405113671,1770848962307,-316.21803813,0.00023837,2]
[405113672,1770848962328,-316.21803813,0.00023837,2]
[405113673,1770848962348,-157.98224726,0.00023837,2]
[405113674,1770848962367,-9819.924885,0.00024203,2]
[405113675,1770848962388,-1764.18784416,0.00024266,2]
[405113676,1770848962407,-1764.18784416,0.00024266,2]
[405113677,1770848962425,-1764.18784416,0.00024266,2]
[405113678,1770848962446,-1765.952032,0.00024266,2]
[405113679,1770848962466,-176.1012306,0.00024266,2]
[405113680,1770848962487,-176.1012306,0.00024266,2]
[405113681,1770848962507,-176.1012306,0.00024266,2]
[405113682,1770848962526,-176.1012306,0.00024266,2]
[405113683,1770848962545,-176.27733183,0.00024266,2]
[405113684,1770848962565,-1088.87788997,0.0002465,2]
[405113685,1770848962586,-317.87036835,0.00025,7]
[405113686,1770848962607,-285.0,0.00025836,2]
[405113687,1770848962628,-420.0,0.00025851,2]
[405113688,1770848962647,-420.0,0.00025852,2]
[405113689,1770848962666,-420.0,0.00025852,2]
[405113690,1770848962686,-323.0,0.00025852,2]
[405113691,1770848962705,-1764.18784416,0.00026327,2]
[405113692,1770848962726,-500.0,0.00027397,5]
[405113693,1770848962757,-150.0,0.00027397,5]
[405113694,1770848962779,-150.0,0.00027397,5]
[405113695,1770848962800,-353.21225774,0.00027945,5]
[405113696,1770848962821,-400.0,0.00027945,5]
[405113697,1770848962840,-250.0,0.00027945,5]
[405113698,1770848962862,-367.605437,0.00028039,2]
[405113706,1770849031923,-962.90483742,0.00024853,2]
[405113707,1770849031935,-650.89641702,0.00024853,2]
[405113708,1770849031949,-1251.65032524,0.00024853,2]
[405113709,1770849031982,-809.67449951,0.00024853,2]
[405113710,1770849031994,-564.78544263,0.00024853,2]
[405113724,1770849032563,500.0,0.00013273,2]
[405113769,1770849038093,-3469.80960086,0.00024853,2]
[405113771,1770849038104,-5000.0,0.00024953,2]
[405113772,1770849038115,-818.0,0.00024953,2]
[405113774,1770849038126,-417.7369819,0.00028249,2]
[405113775,1770849038292,-191.160517,0.0002879,2]
[405113776,1770849038305,-180.0,0.00029999,2]
[405113777,1770849038315,-300.0,0.00029999,2]
[405113778,1770849038325,-300.0,0.00029999,2]
[405113779,1770849038335,-443.96093616,0.0003,7]
[405113780,1770849038345,-4493.21442062,0.0003,7]
[405113781,1770849038355,-352.01366596,0.00033849,7]
[405113782,1770849038365,-300.0,0.00034102,2]
[405113783,1770849038374,-168.0,0.00034855,2]
[405113784,1770849038384,-333.45532515,0.00036127,2]
[405113785,1770849038394,-3923.26734645,0.0003613,2]
[405113786,1770849038406,-436.06635256,0.00036603,2]
[405113787,1770849038416,-712.0,0.00036636,11]
[405113788,1770849038427,-710.0,0.00036644,11]
[405113789,1770849038438,-242.520745,0.00037154,2]
[405113790,1770849038448,-348.25707314,0.0003728,2]
[405113791,1770849038458,-1558.9553773,0.00037323,2]
[405113792,1770849038468,-189.51824005,0.00037562,2]
[405113793,1770849038478,-322.04587319,0.00037615,2]
[405113794,1770849038488,-469.24581288,0.00037989,5]
[405113795,1770849038501,-500.0,0.00037989,2]
[405113796,1770849038511,-500.0,0.00037989,2]
[405113797,1770849038521,-150.655268,0.00038,2]
[405113798,1770849038531,-181.1393165,0.000382,120]
[405113799,1770849038541,-533.31550328,0.00038224,3]
[405113800,1770849038552,-224.98283345,0.00038233,5]
[405113801,1770849038562,-3020.81,0.00038234,10]
[405113802,1770849038571,-2517.34,0.00038234,10]
[405113803,1770849038581,-2097.78,0.00038234,10]
[405113804,1770849038591,-2133.26201312,0.00038234,3]
[405113805,1770849038602,-779.46916347,0.00038244,2]
[405113806,1770849038614,-809.1031,0.00038244,2]
[405113820,1770849040210,-3e-08,0.0003729,2]
[405114109,1770849045343,-3419.52556857,0.00024953,2]
[405114110,1770849045353,-188.73459262,0.0003729,2]
[405114111,1770849045404,-155.41236332,0.0003729,2]
[405114112,1770849045414,-203.77480679,0.00037596,2]
[405114113,1770849045423,-1859.43181688,0.00038244,2]
[405114114,1770849045435,-1410.93076605,0.00038244,2]
[405114115,1770849045527,-1493.67435281,0.00038244,2]
[405114117,1770849046149,-3407.27225774,0.00038244,2]
[405114122,1770849098457,500.0,0.00013699,2]
[405114123,1770849098518,209.53631024,0.00014247,2]
[405114124,1770849100418,500.0,0.00021918,2]
[405114125,1770849100498,500.0,0.00023288,2]
[405114127,1770849239898,5000.0,0.0002352,2]
[405114128,1770849262144,4132.25991659,0.0002352,2]
[405114129,1770849319495,5000.0,0.0002352,2]
[405114130,1770849342180,4245.90305692,0.0002352,2]
[405114131,1770849379898,500.0,0.00013699,2]
[405114132,1770849379946,1000.0,0.00014247,2]
[405114133,1770849380001,500.0,0.00014795,2]
[405114137,1770849433477,591.30697883,0.00013273,2]
[405114138,1770849457270,5000.0,0.0002352,2]
[405114139,1770849479172,5000.0,0.0002352,2]
[405114140,1770849494017,1632.92220423,0.0002352,2]
[405114141,1770849502126,5000.0,0.0002352,2]
[405114142,1770849524537,834.23009962,0.0002352,2]
[405114143,1770849617416,500.0,0.00013273,2]
[405114144,1770849619813,287.47357518,0.00013273,2]
[405114145,1770849690057,234.23557593,0.00013699,2]
[405114147,1770849861373,298.46399934,0.0002352,2]
[405114149,1770849904986,4701.53600066,0.0002352,2]
[405114150,1770849906196,301.54490954,0.00013699,2]
[405114151,1770849906569,500.0,0.00013699,2]
[405114152,1770849906624,173.18089913,0.00014247,2]
[405114153,1770849913525,702.90476288,0.0002352,2]
[405114154,1770849922952,-300.0,0.00023733,2]
[405114155,1770849922977,-300.0,0.00023733,2]
[405114156,1770849923001,-300.0,0.00023733,2]
[405114157,1770849923025,-300.0,0.00023733,2]
[405114158,1770849923050,-1200.0,0.00023733,2]
[405114159,1770849923073,-210.71387512,0.00023834,2]
[405114160,1770849923097,-249.78279594,0.00023834,2]
[405114161,1770849923122,-795.0,0.00023834,2]
[405114162,1770849923145,-584.08,0.00023834,2]
[405114163,1770849923169,-595.88172867,0.00023834,2]
[405114164,1770849923193,-150.0,0.00023917,2]
[405114165,1770849923220,-551.69897064,0.00024192,3]
[405114166,1770849923246,-1005.17786352,0.00024937,3]
[405114167,1770849923270,-420.0,0.00025744,2]
[405114168,1770849923293,-420.0,0.00025744,2]
[405114169,1770849923317,-1680.0,0.00025862,2]
[405114170,1770849923343,-177.0,0.00025917,2]
[405114171,1770849923369,-1458.65675639,0.00026026,3]
[405114172,1770849923392,-45725.22890334,0.00027116,2]
[405114173,1770849923417,-1912.13564927,0.00027116,3]
[405114174,1770849923442,-404.00246735,0.00027609,2]
[405114175,1770849923468,-204.0,0.00027917,2]
[405114176,1770849923492,-437.0,0.00027926,2]
[405114177,1770849923624,-587.0,0.00027926,2]
[405114178,1770849923648,-2351.0,0.00028183,2]
[405114179,1770849923674,-165.53473173,0.00028205,2]
[405114180,1770849923700,-500.0,0.00028205,2]
[405114181,1770849923725,-222.70572493,0.00028205,2]
[405114182,1770849923752,-500.0,0.00028205,2]
[405114183,1770849923778,-500.0,0.00028205,2]
[405114184,1770849923804,-500.0,0.00028205,2]
[405114185,1770849923830,-421.41969335,0.00028205,2]
[405114186,1770849923855,-500.0,0.00028205,2]
[405114187,1770849923880,-500.0,0.00028205,2]
[405114188,1770849923906,-500.0,0.00028205,2]
[405114189,1770849923934,-186.12865239,0.00028205,2]
[405114190,1770849923959,-500.0,0.00028205,2]
[405114191,1770849923983,-218.48516209,0.00028205,2]
[405114192,1770849924008,-2365.61454214,0.00028206,3]
[405114193,1770849944589,-2819.09343501,0.00029295,3]
[405114194,1770849944614,-231.0,0.00029917,2]
[405114195,1770849944638,-278.0,0.00030292,2]
[405114196,1770849944664,-3217.79092867,0.00030385,3]
[405114197,1770849944686,-1123.0,0.00030712,2]
[405114199,1770849962091,169.70744721,0.00030499,10]
[405114200,1770849978531,-3452.1442247,0.00031474,3]
[405114201,1770849978556,-258.0,0.00031917,2]
[405114202,1770849978582,-3686.49752072,0.00032564,3]
[405114203,1770849978606,-500.0,0.00032877,2]
[405114204,1770849978630,-860.6826036,0.00032878,2]
[405114205,1770849978653,-13505.83632322,0.00032878,2]
[405114206,1770850006129,-144.73380608,0.00032878,2]
[405114207,1770850006154,-153.73019326,0.00033654,3]
[405114208,1770850043088,-1699.6548911,0.00033654,3]
[405114209,1770850045084,-1069.54384342,0.00033654,3]
[405114210,1770850054081,-997.92188896,0.00033654,3]
[405114211,1770850054103,-250.0,0.00033692,2]
[405114212,1770850054244,-285.0,0.00033917,120]
[405114213,1770850054267,-399.98662746,0.00034733,2]
[405114214,1770850054291,-4155.20411277,0.00034743,3]
[405114215,1770850054312,-428.412429,0.00034936,2]
[405114216,1770850054333,-160.0,0.00035,2]
[405114217,1770850054356,-203.41,0.00035192,3]
[405114218,1770850054379,-2902.1733847,0.00035833,3]
[405114220,1770850146098,-273.58608807,0.00023834,2]
[405114221,1770850147222,-34.03919444,0.00023834,2]
[405114222,1770850147245,-150.0,0.0002589,2]
[405114223,1770850147267,-177.0,0.0002789,2]
[405114224,1770850147290,-239.89940323,0.0002989,2]
[405114225,1770850147312,-1020.49065352,0.00030137,120]
[405114226,1770850167073,-500.0,0.00023834,2]
[405114227,1770850167095,-480.0,0.00023834,2]
[405114228,1770850167123,-20.0,0.00023834,2]
[405114241,1770850232264,-3979.50934648,0.00030137,120]
[405114242,1770850232291,-3642.01347538,0.00030137,120]
[405114243,1770850232316,-499.48823157,0.00035258,7]
[405114280,1770850238901,-131.98357753,0.00035258,7]
[405114281,1770850238911,-246.49835134,0.00035258,7]
[405114282,1770850238921,-187.34762804,0.00035258,7]
[405114283,1770850238931,-500.0,0.000358,120]
[405114284,1770850238941,-228.27553454,0.000364,2]
[405114285,1770850238951,-410.89596217,0.000364,2]
[405114286,1770850238962,-730.48171052,0.000364,2]
[405114287,1770850238971,-366.37896251,0.00037108,2]
[405114288,1770850238982,-509.8384,0.00038012,2]
[405114289,1770850238993,-508.3616,0.00038012,3]
[405114290,1770850239003,-500.0,0.00038243,2]
[405114291,1770850239013,-3885.33199209,0.00038244,2]
[405114292,1770850239030,-10175.51368664,0.00038244,2]
[405114293,1770850239782,-118.83820483,0.00038244,2]
[405114327,1770850240387,-188.85054345,0.00035158,2]
[405114541,1770850242847,-11611.41569503,0.00035158,2]
[405114543,1770850242857,-49581.24577151,0.00038244,2]
[405114545,1770850242867,-379.98729608,0.0003829,3]
[405114547,1770850242877,-2748.34,0.000383,30]
[405114549,1770850242887,-168.89,0.000383,7]
[405114551,1770850242896,-9639.28,0.000383,2]
[405114553,1770850242907,-1139.96188824,0.00038346,3]
[405114555,1770850242917,-1076.85,0.00038346,3]
[405114557,1770850242926,-538.42,0.00038346,3]
[405114559,1770850242935,-269.21,0.00038346,3]
[405114561,1770850242945,-807.67,0.00038346,3]
[405114563,1770850242955,-1899.9364804,0.00038346,3]
[405114565,1770850242965,-250.0,0.00038355,30]
[405114567,1770850242974,-250.0,0.00038355,30]
[405114569,1770850242984,-500.0,0.00038355,30]
[405114571,1770850242995,-250.0,0.00038355,53]
[405114573,1770850243005,-500.0,0.00038355,53]
[405114575,1770850243015,-250.0,0.00038355,53]
[405114577,1770850243024,-250.0,0.00038355,30]
[405114579,1770850243034,-250.0,0.00038355,53]
[405114581,1770850243043,-250.0,0.00038355,30]
[405114583,1770850243052,-250.0,0.00038355,53]
[405114585,1770850243062,-2000.0,0.00038355,30]
[405114587,1770850243071,-187.78006525,0.00038355,30]
[405114589,1770850243081,-194.72792766,0.00038355,53]
[405114591,1770850243090,-250.0,0.00038355,30]
[405114592,1770850243100,-500.0,0.00038355,30]
[405114594,1770850243110,-250.0,0.00038355,53]
[405114596,1770850243120,-500.0,0.00038355,53]
[405114598,1770850243130,-250.0,0.00038355,30]
[405114600,1770850243140,-250.0,0.00038355,30]
[405114602,1770850243149,-250.0,0.00038355,53]
[405114604,1770850243159,-250.0,0.00038355,53]
[405114606,1770850243168,-250.0,0.00038355,30]
[405114608,1770850243178,-250.0,0.00038355,53]
[405114610,1770850243187,-500.0,0.00038356,5]
[405114612,1770850243196,-680.04,0.00038356,5]
[405114614,1770850243206,-500.0,0.00038356,5]
[405114616,1770850243215,-500.0,0.00038356,5]
[405114618,1770850243224,-500.0,0.00038356,5]
[405114620,1770850243234,-525.05977732,0.00038356,5]
[405114622,1770850243244,-587.80974306,0.00038356,5]
[405114624,1770850243254,-500.0,0.00038356,5]
[405114626,1770850243263,-500.0,0.00038356,5]
[405114628,1770850243273,-500.0,0.00038356,5]
[405114630,1770850243282,-770.3,0.00038356,5]
[405114632,1770850243292,-1000.0,0.00038356,2]
[405114634,1770850243301,-500.0,0.00038356,5]
[405114636,1770850243311,-645.92611005,0.00038356,5]
[405114638,1770850243321,-500.0,0.00038356,5]
[405114641,1770850243331,-500.0,0.00038356,2]
[405114643,1770850243341,-500.0,0.00038356,5]
[405114645,1770850243350,-1033.49,0.00038356,5]
[405114647,1770850243360,-500.0,0.00038356,5]
[405114649,1770850243369,-1000.0,0.00038356,2]
[405114651,1770850243379,-154.35899848,0.00038356,5]
[405114653,1770850243390,-503.98507126,0.00038356,5]
[405114654,1770850243399,-500.0,0.00038356,5]
[405114656,1770850243408,-500.0,0.00038356,5]
[405114658,1770850243418,-500.0,0.00038356,5]
[405114660,1770850243429,-5004.67,0.00038356,2]
[405114663,1770850243438,-500.0,0.00038356,5]
[405114665,1770850243448,-500.0,0.00038356,5]
[405114667,1770850243459,-503.81,0.00038356,5]
[405114669,1770850243469,-500.0,0.00038356,5]
[405114671,1770850243478,-500.0,0.00038356,5]
[405114673,1770850243489,-213.24498991,0.00038356,5]
[405114675,1770850243502,-500.0,0.00038356,5]
[405114677,1770850243512,-500.0,0.00038356,5]
[405114679,1770850243522,-500.0,0.00038356,5]
[405114681,1770850243532,-311.19273355,0.00038356,5]
[405114683,1770850243542,-500.0,0.00038356,5]
[405114685,1770850243560,-500.0,0.00038356,5]
[405114687,1770850243571,-862.15,0.00038356,5]
[405114689,1770850243580,-150.08130528,0.00038356,5]
[405114691,1770850243591,-500.0,0.00038356,5]
[405114693,1770850243600,-500.0,0.00038356,5]
[405114695,1770850243610,-790.97,0.00038356,5]
[405114697,1770850243621,-520.94533408,0.00038356,5]
[405114699,1770850243630,-500.0,0.00038356,5]
[405114701,1770850243640,-500.0,0.00038356,5]
[405114703,1770850243650,-912.59,0.00038356,5]
[405114705,1770850243660,-500.0,0.00038356,5]
[405114707,1770850243670,-500.0,0.00038356,5]
[405114709,1770850243680,-308.52,0.00038356,5]
[405114720,1770850243789,-500.0,0.00038356,5]
[405114723,1770850243803,-512.196884,0.00038356,5]
[405114725,1770850243813,-500.0,0.00038356,5]
[405114727,1770850243823,-500.0,0.00038356,5]
[405114729,1770850243834,-519.45032866,0.00038356,5]
[405114731,1770850243846,-515.6499369,0.00038356,5]
[405114733,1770850243858,-507.84914761,0.00038356,5]
[405114735,1770850243868,-500.0,0.00038356,5]
[405114737,1770850243879,-500.0,0.00038356,5]
[405114739,1770850243889,-244.03963389,0.00038356,5]
[405114741,1770850243899,-317.27222052,0.00038356,5]
[405114743,1770850243909,-853.41,0.00038356,5]
[405114745,1770850243918,-742.18,0.00038356,5]
[405114747,1770850243929,-500.0,0.00038356,5]
[405114749,1770850243938,-500.0,0.00038356,5]
[405114751,1770850243948,-500.0,0.00038356,5]
[405114752,1770850243957,-500.0,0.00038356,5]
[405114754,1770850243967,-500.0,0.00038356,5]
[405114756,1770850243977,-162.65832985,0.00038356,5]
[405114758,1770850243987,-500.0,0.00038356,5]
[405114760,1770850243998,-500.0,0.00038356,5]
[405114762,1770850244008,-500.0,0.00038356,5]
[405114764,1770850244018,-1614.01,0.00038356,5]
[405114767,1770850244028,-377.22797098,0.00038356,5]
[405114769,1770850244040,-772.62,0.00038356,5]
[405114771,1770850244050,-500.0,0.00038356,5]
[405114773,1770850244059,-500.0,0.00038356,5]
[405114775,1770850244069,-500.0,0.00038356,5]
[405114777,1770850244078,-500.0,0.00038356,5]
[405114779,1770850244088,-721.69,0.00038356,5]
[405114781,1770850244098,-500.0,0.00038356,5]
[405114783,1770850244108,-500.0,0.00038356,5]
[405114785,1770850244117,-500.0,0.00038356,5]
[405114787,1770850244127,-562.82376789,0.00038356,5]
[405114789,1770850244138,-500.0,0.00038356,5]
[405114791,1770850244148,-500.0,0.00038356,5]
[405114793,1770850244159,-4184.51,0.00038356,5]
[405114794,1770850244170,-769.48,0.00038356,5]
[405114796,1770850244180,-500.0,0.00038356,5]
[405114798,1770850244190,-1788.68,0.00038356,5]
[405114800,1770850244199,-703.48,0.00038356,5]
[405114802,1770850244209,-342.0543997,0.00038356,5]
[405114804,1770850244219,-500.0,0.00038356,5]
[405114806,1770850244228,-586.96,0.00038356,5]
[405114808,1770850244237,-500.0,0.00038356,5]
[405114810,1770850244248,-500.0,0.00038356,5]
[405114812,1770850244257,-500.0,0.00038356,5]
[405114814,1770850244267,-516.9,0.00038356,5]
[405114816,1770850244277,-500.0,0.00038356,2]
[405114818,1770850244286,-237.85101951,0.00038356,5]
[405114820,1770850244296,-500.0,0.00038356,5]
[405114822,1770850244305,-1875.0,0.00038356,5]
[405114824,1770850244315,-385.48229166,0.00038356,5]
[405114826,1770850244325,-500.0,0.00038356,5]
[405114828,1770850244334,-300.0,0.00038356,5]
[405114830,1770850244344,-152.71820199,0.00038356,5]
[405114832,1770850244353,-500.0,0.00038356,5]
[405114834,1770850244362,-500.0,0.00038356,5]
[405114836,1770850244372,-500.0,0.00038356,5]
[405114838,1770850244382,-380.93082879,0.00038356,5]
[405114840,1770850244392,-500.0,0.00038356,5]
[405114842,1770850244401,-500.0,0.00038356,5]
[405114844,1770850244411,-527.34520345,0.00038356,5]
[405114846,1770850244420,-500.0,0.00038356,5]
[405114848,1770850244429,-2321.41,0.00038356,5]
[405114850,1770850244439,-500.0,0.00038356,5]
[405114852,1770850244448,-570.15977962,0.00038356,5]
[405114854,1770850244457,-500.0,0.00038356,5]
[405114856,1770850244466,-500.0,0.00038356,5]
[405114857,1770850244475,-12182.61,0.00038356,5]